bitfinex/quotes_SOLUSD_20260103
["timestamp","ask_amount","ask_price","bid_price","bid_amount"]
[1767427226919,0.70641326,130.1,130.06,10.92804269]
[1767427227729,0.70641326,130.1,130.07,0.68499999]
[1767427228931,0.70641326,130.09,130.05,24.28354145]
[1767427229637,0.70641326,130.09,130.05,10.24354145]
[1767427229931,0.66657457,130.08,130.05,0.68499999]
[1767427230112,0.66657457,130.08,130.04,3.21321492]
[1767427230540,0.66657457,130.08,130.05,0.65881132]
[1767427230916,0.7105394,130.09,130.06,0.65881132]
[1767427232226,0.7105394,130.09,130.06,8.34741478]
[1767427232419,0.7105394,130.09,130.06,10.90181838]
[1767427232733,0.7105394,130.08,130.05,7.6893131]
[1767427234533,0.7105394,130.07,130.04,7.68972788]
[1767427235818,0.7105394,130.07,130.04,8.3485392]
[1767427236540,0.7105394,130.07,130.03,7.69053295]
[1767427236723,0.7105394,130.06,130.03,3.21321492]
[1767427237126,0.7105394,130.06,130.03,2.5544036]
[1767427237554,0.7105394,130.04,130.02,0.2]
[1767427238244,0.7105394,130.03,130.0,24.10677414]
[1767427239017,0.7105394,130.02,130.0,24.10677414]
[1767427241622,0.7105394,130.02,130.0,22.60231353]
[1767427241623,0.6105394,130.01,130.0,22.60231353]
[1767427242658,0.6105394,130.01,129.99,0.2]
[1767427242659,0.5105394,130.0,129.99,0.1]
[1767427244255,0.4105394,130.01,129.99,0.1]
[1767427244849,0.4105394,130.01,129.98,0.85881132]
[1767427244850,2.864943,130.0,129.98,0.2]
[1767427245360,0.1105394,129.98,129.96,0.2]
[1767427246257,2.664943,130.01,129.96,0.85881132]
[1767427246437,0.099,130.0,129.96,0.85881132]
[1767427247149,0.110424,129.99,129.96,0.2]
[1767427247353,0.09911424,129.98,129.96,0.2]
[1767427248360,2.5544036,129.98,129.96,0.0894606]
[1767427248547,21.73297148,129.99,129.96,0.0894606]
[1767427248854,21.73250958,130.0,129.96,0.74827192]
[1767427249731,21.73250958,130.0,129.96,2.6438642]
[1767427250238,21.73250958,130.0,129.96,3.30267552]
[1767427250444,7.69183017,130.01,129.97,0.65881132]
[1767427250649,7.69183017,130.01,129.98,0.65881132]
[1767427251060,10.24498283,130.03,129.98,3.21321492]
[1767427251232,10.24498283,130.03,129.99,0.65881132]
[1767427251850,10.24498283,130.03,129.98,2.5544036]
[1767427252237,10.24498283,130.03,129.98,3.21321492]
[1767427252858,10.24498283,130.03,129.99,0.65881132]
[1767427253066,10.24422738,130.05,130.01,0.65881132]
[1767427253235,24.28422738,130.05,130.01,0.65881132]
[1767427255345,19.22251913,130.06,130.01,0.65881132]
[1767427255346,7.68892061,130.06,130.02,0.65881132]
[1767427256465,21.72832093,130.07,130.04,0.65881132]
[1767427256843,7.68772529,130.08,130.04,3.21321492]
[1767427257031,7.68772529,130.08,130.05,0.65881132]
[1767427257467,7.68772529,130.08,130.04,3.21321492]
[1767427258245,7.68712925,130.09,130.06,0.65881132]
[1767427259560,24.28095946,130.1,130.06,0.65881132]
[1767427259863,21.72655586,130.1,130.06,3.21321492]
[1767427260036,7.68655586,130.1,130.06,3.21321492]
[1767427260237,10.24038007,130.11,130.07,0.69256196]
[1767427260781,2.5544036,130.11,130.07,0.69256196]
[1767427261542,10.24025093,130.11,130.07,0.69256196]
[1767427261750,7.68584733,130.11,130.07,10.9350819]
[1767427262245,7.68523887,130.12,130.08,0.69256196]
[1767427262443,21.76203941,130.16,130.11,0.69256196]
[1767427262675,21.72285187,130.16,130.12,0.69256196]
[1767427262836,10.23548509,130.19,130.14,0.69256196]
[1767427263041,7.62867042,130.18,130.14,0.69256196]
[1767427263271,2.5544036,130.18,130.14,0.69256196]
[1767427263645,21.72108149,130.19,130.14,0.69256196]
[1767427263949,10.23548509,130.19,130.14,3.24696556]
[1767427264138,10.23548509,130.19,130.14,0.69256196]
[1767427264345,2.5544036,130.18,130.14,0.69256196]
[1767427265059,10.23548509,130.19,130.14,0.69256196]
[1767427265361,10.23548509,130.19,130.15,0.69256196]
[1767427265749,0.1,130.2,130.16,0.69256196]
[1767427265750,7.78063745,130.2,130.16,0.69256196]
[1767427266064,0.1,130.2,130.18,0.69256196]
[1767427266255,0.1,130.2,130.19,0.69256196]
[1767427266441,0.1,130.2,130.19,0.66242981]
[1767427267171,0.1,130.2,130.11,7.67942078]
[1767427267350,2.6544036,130.2,130.15,10.2377108]
[1767427267552,0.1,130.2,130.15,10.2377108]
[1767427267751,0.1,130.2,130.15,7.6833072]
[1767427267948,0.1,130.2,130.15,10.2377108]
[1767427268379,0.1,130.2,130.16,0.69256196]
[1767427268959,2.6544036,130.2,130.16,0.69256196]
[1767427269262,0.1,130.2,130.17,0.69256196]
[1767427270476,0.1,130.2,130.17,0.66253787]
[1767427271182,0.1,130.2,130.17,0.63310028]
[1767427271384,0.1,130.2,130.17,3.18750388]
[1767427271886,0.1,130.2,130.17,0.63310028]
[1767427272962,2.74399743,130.2,130.15,7.68330052]
[1767427273290,2.64399743,130.19,130.15,0.69256196]
[1767427273493,7.68167153,130.18,130.15,0.69256196]
[1767427280097,10.23607513,130.18,130.15,0.69256196]
[1767427280887,10.32566896,130.18,130.14,0.69256196]
[1767427282491,1.72282521,130.17,130.13,0.69256196]
[1767427282684,1.72282521,130.16,130.12,0.69256196]
[1767427282892,0.08959383,130.15,130.11,22.39824538]
[1767427283382,1.63323138,130.16,130.11,22.39824538]
[1767427283383,1.72282521,130.16,130.12,0.69256196]
[1767427284480,9.40612523,130.16,130.12,0.69256196]
[1767427284804,7.68189255,130.18,130.14,0.69256196]
[1767427284992,21.70118075,130.19,130.15,0.69256196]
[1767427286297,7.68118075,130.19,130.15,0.69256196]
[1767427287105,1.73323138,130.2,130.15,7.68328155]
[1767427287293,0.1,130.21,130.2,0.69256196]
[1767427287699,0.1,130.21,130.19,0.69256196]
[1767427295109,9.41154079,130.24,130.21,0.71518881]
[1767427295521,0.1,130.24,130.21,0.71518881]
[1767427295897,0.1,130.24,130.22,0.71518881]
[1767427297604,5.15528187,130.24,130.22,0.71518881]
[1767427299501,0.1,130.26,130.23,1.63323138]
[1767427299705,0.1,130.26,130.2,29.28300095]
[1767427299706,10.10505968,130.26,130.21,1.63323138]
[1767427299902,10.10505968,130.26,130.21,2.34842019]
[1767427300302,8.4718283,130.26,130.22,0.71518881]
[1767427300501,10.10505968,130.26,130.22,0.71518881]
[1767427300877,2.32795178,130.25,130.21,0.71518881]
[1767427301115,2.32795178,130.25,130.21,8.39503089]
[1767427301315,0.6947204,130.23,130.19,0.71518881]
[1767427301527,0.6947204,130.22,130.19,0.71518881]
[1767427302132,1.63323138,130.2,130.17,0.71518881]
[1767427302605,0.6947204,130.21,130.17,0.71518881]
[1767427302606,2.32795178,130.21,130.17,0.71518881]
[1767427302805,8.37468791,130.21,130.17,0.71518881]
[1767427303015,10.00791929,130.21,130.17,0.71518881]
[1767427303500,10.00747346,130.22,130.18,0.71518881]
[1767427304632,8.3748362,130.21,130.18,0.71518881]
[1767427304938,2.32795178,130.2,130.16,8.39790822]
[1767427305421,1.63323138,130.18,130.15,8.39852657]
[1767427305620,1.63323138,130.18,130.15,0.71518881]
[1767427305819,2.32795178,130.19,130.15,0.71518881]
[1767427306231,0.6947204,130.19,130.15,0.71518881]
[1767427306420,2.32795178,130.19,130.15,0.71518881]
[1767427306904,2.32795178,130.19,130.14,7.68387585]
[1767427306905,0.6947204,130.18,130.14,8.39906466]
[1767427307437,2.32795178,130.16,130.12,0.71518881]
[1767427307733,2.32795178,130.16,130.1,1.63323138]
[1767427307734,16.34795178,130.18,130.14,0.71518881]
[1767427308526,10.00923547,130.19,130.15,0.71518881]
[1767427309833,10.00923547,130.19,130.15,8.39851667]
[1767427310036,2.32795178,130.19,130.15,8.39851667]
[1767427310233,0.6947204,130.19,130.15,8.39851667]
[1767427312121,10.00909895,130.19,130.15,0.71518881]
[1767427312723,8.37586757,130.19,130.15,0.71518881]
[1767427313032,10.00909895,130.19,130.15,0.71518881]
[1767427313735,0.6947204,130.18,130.15,0.71518881]
[1767427314939,0.6947204,130.18,130.15,8.3986031]
[1767427317637,10.00862271,130.2,130.16,0.71518881]
[1767427318743,8.37539133,130.2,130.16,0.71518881]
[1767427318941,10.00862271,130.2,130.16,0.71518881]
[1767427319241,0.6947204,130.2,130.17,0.71518881]
[1767427319829,0.71008714,130.19,130.15,8.36547509]
[1767427320029,0.71008714,130.19,130.16,0.68215225]
[1767427320234,1.63323138,130.2,130.17,0.68215225]
[1767427320552,8.39019923,130.21,130.18,0.68215225]
[1767427321041,0.71008714,130.21,130.18,0.68215225]
[1767427321249,8.38957105,130.22,130.18,0.68215225]
[1767427321423,0.71008714,130.19,130.16,0.68215225]
[1767427321744,0.71008714,130.2,130.16,0.68215225]
[1767427323150,2.34331852,130.19,130.15,0.68215225]
[1767427323321,2.34331852,130.19,130.14,0.68215225]
[1767427323322,0.71008714,130.18,130.14,0.68215225]
[1767427323949,0.71008714,130.18,130.15,0.68215225]
[1767427324835,0.71008714,130.18,130.14,8.36578251]
[1767427325037,0.71008714,130.18,130.14,7.68363026]
[1767427325545,0.71008714,130.18,130.14,8.36578251]
[1767427329756,2.34331852,130.18,130.14,8.36578251]
[1767427330890,2.34331852,130.18,130.15,0.68215225]
[1767427333054,0.71008714,130.18,130.15,0.68215225]
[1767427333264,2.34331852,130.18,130.15,0.68215225]
[1767427333462,14.73008714,130.22,130.16,0.68215225]
[1767427333643,1.63323138,130.21,130.16,0.68215225]
[1767427333844,19.9073204,130.23,130.17,0.68215225]
[1767427334045,1.63323138,130.22,130.17,0.68215225]
[1767427334240,2.34331852,130.22,130.17,0.68215225]
[1767427334735,10.02263045,130.22,130.18,0.68215225]
[1767427335155,0.71008714,130.22,130.18,0.68215225]
[1767427335332,0.71008714,130.23,130.19,2.31538363]
[1767427335534,0.71008714,130.23,130.19,0.68215225]
[1767427336151,0.71008714,130.23,130.2,0.68215225]
[1767427339682,8.38898243,130.23,130.2,0.68215225]
[1767427339845,8.38898243,130.23,130.19,8.36291522]
[1767427340349,8.38898243,130.23,130.2,0.68215225]
[1767427340550,0.71008714,130.23,130.2,0.68215225]
[1767427341256,0.71008714,130.22,130.19,7.68076297]
[1767427341452,0.71008714,130.22,130.19,8.36291522]
[1767427342366,10.0226534,130.22,130.18,8.36367149]
[1767427342564,10.0226534,130.22,130.18,8.3636716]
[1767427343067,10.0226534,130.22,130.17,8.36428887]
[1767427343068,2.34331852,130.21,130.17,8.36428887]
[1767427343272,0.71008714,130.2,130.17,8.36428887]
[1767427344674,0.71008714,130.2,130.17,0.68215225]
[1767427345265,0.71008714,130.2,130.16,8.36476176]
[1767427345470,0.71008714,130.2,130.17,8.36435443]
[1767427345896,3.2605003,130.22,130.18,0.68215225]
[1767427346251,10.93993926,130.22,130.18,0.68215225]
[1767427346748,3.2605003,130.21,130.18,0.68215225]
[1767427347769,0.71008714,130.21,130.18,0.68215225]
[1767427348173,8.38999587,130.21,130.18,0.68215225]
[1767427348350,0.71008714,130.22,130.19,0.68215225]
[1767427348662,3.2605003,130.23,130.19,0.68215225]
[1767427349065,8.39257358,130.22,130.19,0.68215225]
[1767427349278,8.39257358,130.22,130.18,10.23202559]
[1767427349279,0.71307377,130.21,130.18,10.89083752]
[1767427350677,0.68494976,130.22,130.19,0.69704567]
[1767427350863,0.68494976,130.21,130.18,0.69704567]
[1767427352369,10.22913542,130.23,130.18,10.92912674]
[1767427352553,8.36367202,130.23,130.19,0.69704567]
[1767427352756,0.68494976,130.23,130.19,10.92808577]
[1767427356876,0.68494976,130.23,130.2,0.69704567]
[1767427358362,10.91421174,130.23,130.2,0.69704567]
[1767427359158,8.36379858,130.23,130.2,0.69704567]
[1767427359362,10.91421174,130.23,130.2,0.69704567]
[1767427362156,8.36379858,130.23,130.2,0.69704567]
[1767427362477,10.91421174,130.23,130.2,0.69704567]
[1767427362676,8.36379858,130.23,130.2,0.69704567]
[1767427362874,10.91421174,130.23,130.2,0.69704567]
[1767427363384,10.91363624,130.24,130.2,0.69704567]
[1767427364080,0.68494976,130.23,130.2,0.69704567]
[1767427364283,10.91363624,130.24,130.2,0.69704567]
[1767427364461,8.36322308,130.24,130.2,0.69704567]
[1767427364978,0.78494976,130.26,130.22,0.69704567]
[1767427365159,8.46214339,130.26,130.23,0.69704567]
[1767427365359,0.78494976,130.26,130.23,0.66820053]
[1767427366178,0.1,130.26,130.23,0.66820053]
[1767427366375,0.78494976,130.26,130.23,0.66820053]
[1767427370182,0.68494976,130.25,130.21,22.39684131]
[1767427370373,2.55041316,130.25,130.22,0.69704567]
[1767427370889,2.55041316,130.25,130.22,0.66813446]
[1767427370890,3.23536292,130.25,130.22,0.66813446]
[1767427372874,0.68494976,130.25,130.22,0.66813446]
[1767427376397,0.68494976,130.25,130.22,0.63845722]
[1767427377084,0.68494976,130.25,130.22,0.60827348]
[1767427378875,0.68494976,130.23,130.18,80.40340535]
[1767427379091,0.68494976,130.22,130.19,0.69704567]
[1767427379981,0.6824954,130.23,130.19,8.37812085]
[1767427380181,3.23290856,130.23,130.19,8.37812085]
[1767427380800,2.55041316,130.24,130.2,0.66118835]
[1767427380988,0.6824954,130.24,130.2,0.66118835]
[1767427381193,8.45954587,130.26,130.21,0.66118835]
[1767427381394,0.1,130.26,130.24,0.66118835]
[1767427381895,0.1,130.26,130.24,3.21160151]
[1767427382087,0.1,130.26,130.24,10.8892286]
[1767427382682,0.1,130.26,130.25,0.66118835]
[1767427383614,0.7824954,130.28,130.26,0.66118835]
[1767427383615,1e-08,130.28,130.26,0.66118835]
[1767427383819,1e-08,130.28,130.26,3.21160151]
[1767427384109,1e-08,130.28,130.27,0.66118835]
[1767427384405,0.1,130.3,130.28,0.66118835]
[1767427384618,0.7824954,130.3,130.27,2.55041316]
[1767427385280,0.7824954,130.3,130.27,10.22634159]
[1767427385681,0.7824954,130.3,130.27,7.67592843]
[1767427385887,0.7824954,130.3,130.28,2.55041316]
[1767427386302,0.1,130.31,130.29,2.55041316]
[1767427386514,0.1,130.31,130.3,0.66118835]
[1767427386891,0.1,130.31,130.28,2.55041316]
[1767427387193,1e-08,130.31,130.28,0.66118835]
[1767427387510,1e-08,130.31,130.29,10.88678763]
[1767427387700,1e-08,130.31,130.28,0.66118835]
[1767427388198,1e-08,130.31,130.24,8.33927316]
[1767427388199,2.55041316,130.29,130.24,8.33927316]
[1767427388394,0.6824954,130.28,130.25,0.66118835]
[1767427389812,0.6824954,130.29,130.25,10.88902146]
[1767427390115,0.6824954,130.29,130.26,0.66118835]
[1767427390593,0.6824954,130.3,130.27,0.66118835]
[1767427390790,0.68249541,130.31,130.27,3.21160151]
[1767427390995,0.68249541,130.31,130.27,0.66118835]
[1767427391218,0.68249541,130.31,130.28,2.55041316]
[1767427391514,0.68249541,130.31,130.27,10.88775613]
[1767427392718,8.35652303,130.31,130.27,0.66118835]
[1767427392917,8.35652303,130.31,130.25,14.68118835]
[1767427392918,3.23290856,130.29,130.25,14.68118835]
[1767427393090,3.23290856,130.29,130.25,14.02]
[1767427393091,0.6824954,130.28,130.25,14.02]
[1767427393798,2.55041316,130.29,130.25,22.3586963]
[1767427394002,3.23290856,130.3,130.26,0.66118835]
[1767427394208,0.6824954,130.3,130.26,0.66118835]
[1767427394526,1e-08,130.31,130.29,3.21160151]
[1767427394820,1e-08,130.31,130.29,0.66118835]
[1767427396317,1e-08,130.31,130.3,0.66118835]
[1767427396822,1e-08,130.31,130.29,0.66118835]
[1767427396995,1e-08,130.31,130.3,0.66118835]
[1767427397913,0.1,130.34,130.3,2.55041316]
[1767427398089,0.1,130.34,130.31,10.22383555]
[1767427398435,0.1,130.34,130.32,0.66118835]
[1767427399105,0.1,130.34,130.32,8.33446137]
[1767427399823,0.1,130.34,130.32,0.66118835]
[1767427400197,0.1,130.34,130.31,7.67389025]
[1767427400198,0.7824954,130.34,130.3,8.33526454]
[1767427400717,0.1,130.34,130.31,3.21160151]
[1767427401018,0.1,130.34,130.32,0.66118835]
[1767427401197,0.1,130.34,130.32,8.33457112]
[1767427402208,0.1,130.34,130.3,3.21160151]
[1767427402209,0.7824954,130.34,130.3,3.21160151]
[1767427402412,0.7824954,130.34,130.31,0.66118835]
[1767427402612,0.7824954,130.34,130.3,7.67410124]
[1767427402810,0.7824954,130.34,130.3,8.33528959]
[1767427403001,0.7824954,130.34,130.3,10.88570275]
[1767427403311,0.7824954,130.34,130.3,8.33528959]
[1767427403721,0.7824954,130.34,130.3,10.88570275]
[1767427403921,0.1,130.34,130.31,0.66118835]
[1767427404309,0.1,130.34,130.32,0.66118835]
[1767427405616,0.1,130.34,130.31,0.66118835]
[1767427405820,0.7824954,130.34,130.31,0.66118835]
[1767427406321,0.6824954,130.33,130.29,22.33632725]
[1767427407026,0.7824954,130.34,130.3,0.66118835]
[1767427407224,0.7824954,130.34,130.3,8.3356852]
[1767427407921,0.7824954,130.34,130.31,0.66118835]
[1767427408624,0.1,130.34,130.32,0.66118835]
[1767427410734,0.1,130.34,130.32,8.33435863]
[1767427411326,0.1,130.35,130.32,7.67317028]
[1767427411505,0.65024262,130.34,130.31,0.71665429]
[1767427412615,0.74955916,130.35,130.31,0.71665429]
[1767427412820,0.71790503,130.34,130.3,0.7674597]
[1767427413017,0.71790503,130.34,130.3,0.71665429]
[1767427414028,0.1,130.35,130.31,0.71665429]
[1767427414331,2.37855157,130.35,130.31,0.71665429]
[1767427414721,0.74955916,130.35,130.31,0.71665429]
[1767427414925,0.74955916,130.35,130.31,8.39049726]
[1767427417031,0.71790503,130.34,130.3,0.71665429]
[1767427417333,0.71790503,130.34,130.3,8.3908573]
[1767427417531,0.71790503,130.34,130.31,7.67400217]
[1767427417738,0.71790503,130.34,130.31,8.39065646]
[1767427418634,0.81859539,130.35,130.32,0.71665429]
[1767427418834,0.81859539,130.35,130.32,8.38990096]
[1767427419846,0.81859539,130.35,130.32,0.71665429]
[1767427420225,0.81859539,130.35,130.32,8.39005785]
[1767427422142,0.1,130.35,130.33,0.71665429]
[1767427422440,0.81859539,130.36,130.33,0.71665429]
[1767427422441,0.1,130.36,130.33,0.71665429]
[1767427422618,0.1,130.36,130.34,0.71665429]
[1767427424140,0.1,130.36,130.34,8.388681]
[1767427424331,0.1,130.36,130.34,0.71665429]
[1767427424528,0.65024262,130.35,130.32,8.38986792]
[1767427424756,0.1,130.36,130.34,0.71665429]
[1767427424923,0.1,130.36,130.33,8.38913003]
[1767427425322,2.44689744,130.36,130.32,8.39004881]
[1767427425540,0.65024262,130.35,130.32,8.39004881]
[1767427427037,0.65024262,130.35,130.32,7.67339452]
[1767427427657,0.65024262,130.35,130.32,8.39004881]
[1767427428550,0.1,130.36,130.33,0.71665429]
[1767427428728,0.1,130.36,130.34,0.71665429]
[1767427429744,0.1,130.36,130.34,8.38859163]
[1767427430060,1e-08,130.36,130.35,0.71665429]
[1767427430263,1e-08,130.36,130.34,22.38859163]
[1767427430834,0.65024263,130.36,130.33,22.38927672]
[1767427431067,1e-08,130.36,130.34,7.67218043]
[1767427431253,1e-08,130.36,130.34,8.38883472]
[1767427431433,1e-08,130.36,130.35,0.71665429]
[1767427431836,24.00677414,130.38,130.35,9.30064565]
[1767427432461,24.00677414,130.38,130.36,0.71665429]
[1767427432975,1e-08,130.38,130.37,0.71665429]
[1767427433129,1e-08,130.38,130.37,0.68793543]
[1767427433454,0.7185954,130.38,130.36,14.0]
[1767427434250,0.7185954,130.38,130.34,21.67208952]
[1767427435258,0.7185954,130.38,130.35,0.71665429]
[1767427436056,0.7185954,130.38,130.35,8.38828201]
[1767427436253,0.7185954,130.38,130.34,22.38877736]
[1767427436555,0.71859539,130.37,130.34,8.38877736]
[1767427437057,0.7185954,130.38,130.34,8.38877736]
[1767427437764,0.7185954,130.38,130.34,7.67212307]
[1767427438142,0.71859539,130.37,130.33,24.01826159]
[1767427438338,0.71859539,130.37,130.33,22.38926918]
[1767427438542,0.71859539,130.37,130.34,8.38877349]
[1767427439148,0.71859539,130.37,130.33,14.0]
[1767427439361,0.63597492,130.33,130.26,0.71665429]
[1767427439561,0.099,130.31,130.27,8.39259319]
[1767427440340,0.63060517,130.3,130.26,0.69115824]
[1767427440561,0.10431605,130.29,130.25,8.36831933]
[1767427440858,0.10431605,130.29,130.25,0.69115824]
[1767427441054,0.62534228,130.28,130.24,23.99827971]
[1767427441558,8.30114427,130.28,130.24,14.69115824]
[1767427441750,8.30114427,130.28,130.24,22.36925016]
[1767427441952,0.63597492,130.29,130.25,0.69115824]
[1767427442543,7.67106474,130.36,130.29,0.69115824]
[1767427442741,7.67106474,130.36,130.3,16.32015065]
[1767427442742,0.63060517,130.35,130.3,16.32015065]
[1767427442959,0.63060517,130.35,130.31,1.62899241]
[1767427443351,1.73330846,130.34,130.3,7.67459708]
[1767427443549,0.10431605,130.34,130.3,7.67459708]
[1767427443752,0.10431605,130.34,130.3,8.36575532]
[1767427445444,0.63597492,130.36,130.32,0.69115824]
[1767427445644,0.63597492,130.36,130.32,14.69115824]
[1767427446462,8.30707866,130.36,130.32,14.69115824]
[1767427447062,8.30707866,130.36,130.32,22.36456943]
[1767427447063,0.63597492,130.36,130.32,22.36456943]
[1767427449273,8.30721372,130.36,130.32,14.69115824]
[1767427449570,8.30721372,130.36,130.32,22.36452527]
[1767427449773,9.93620613,130.36,130.32,22.36452527]
[1767427450470,8.30721372,130.36,130.32,22.36452527]
[1767427450672,9.93620613,130.36,130.32,22.36452527]
[1767427451176,9.93620613,130.36,130.32,14.69115824]
[1767427451373,0.63060517,130.34,130.3,8.36557888]
[1767427451671,0.63060517,130.34,130.29,19.18711661]
[1767427451672,0.10431605,130.33,130.29,14.0]
[1767427452080,0.10431605,130.33,130.29,14.69115824]
[1767427452374,2.25433469,130.32,130.28,0.69115824]
[1767427452564,0.62534228,130.32,130.28,14.69115824]
[1767427452769,2.25433469,130.32,130.28,14.69115824]
[1767427453175,0.10952631,130.31,130.27,22.36734581]
[1767427454073,0.10952631,130.31,130.27,8.36734581]
[1767427454269,0.10952631,130.31,130.28,14.0]
[1767427455153,7.78370307,130.31,130.28,14.0]
[1767427455359,0.10952631,130.31,130.28,14.0]
[1767427456160,7.78363708,130.31,130.28,14.0]
[1767427456673,9.41262949,130.31,130.27,0.69115824]
[1767427456979,9.9390781,130.31,130.27,14.69115824]
[1767427457164,9.9390781,130.31,130.27,0.69115824]
[1767427457363,9.9390781,130.31,130.27,14.69115824]
[1767427459284,1.72799241,130.3,130.26,0.69115824]
[1767427459587,1.72799241,130.3,130.26,14.69115824]
[1767427460287,8.30604467,130.29,130.26,14.0]
[1767427460574,1.73330846,130.28,130.25,14.0]
[1767427461659,0.10431605,130.28,130.25,14.0]
[1767427461860,1.73330846,130.28,130.25,14.0]
[1767427462068,0.10431605,130.28,130.24,8.36915153]
[1767427462263,1.73330846,130.28,130.24,22.36915153]
[1767427462780,7.78009925,130.28,130.24,22.36915153]
[1767427462986,9.40909166,130.28,130.24,22.36915153]
[1767427463363,7.78009925,130.28,130.24,22.36915153]
[1767427463562,1.73330846,130.28,130.24,22.36915153]
[1767427463984,8.30170675,130.27,130.22,8.57005698]
[1767427464187,0.62018412,130.25,130.22,14.89115824]
[1767427464374,2.26496733,130.26,130.22,14.89115824]
[1767427464884,0.63597492,130.26,130.22,22.57010776]
[1767427466260,1.62899241,130.25,130.22,14.89115824]
[1767427466467,3.17978195,130.24,130.22,0.2]
[1767427467567,2.65349283,130.23,130.2,14.69115824]
[1767427468163,2.54917678,130.22,130.18,22.37265874]
[1767427468672,2.51917678,130.22,130.18,22.37265874]
[1767427469177,2.51917678,130.22,130.19,0.71281912]
[1767427469485,10.33248198,130.23,130.19,0.71281912]
[1767427470867,3.17451906,130.22,130.18,0.7167206]
[1767427471073,2.65870309,130.21,130.18,14.02]
[1767427471471,0.10952631,130.21,130.17,0.7167206]
[1767427471674,2.54917678,130.2,130.17,0.7167206]
[1767427471876,0.10952631,130.21,130.17,0.7167206]
[1767427472076,2.54917678,130.2,130.17,0.7167206]
[1767427472391,0.62018412,130.2,130.16,0.9167206]
[1767427472566,2.66380967,130.19,130.16,0.2]
[1767427473068,10.34489146,130.19,130.16,0.2]
[1767427474483,2.54917678,130.17,130.14,0.2]
[1767427474887,3.06430538,130.16,130.14,0.1]
[1767427475091,2.96430538,130.15,130.11,0.7167206]
[1767427475263,2.54917678,130.14,130.11,0.7167206]
[1767427478294,8.09811851,130.16,130.12,0.7167206]
[1767427478478,10.64729529,130.16,130.12,0.7167206]
[1767427478886,2.96430538,130.16,130.12,0.7167206]
[1767427479693,10.64721138,130.16,130.12,0.7167206]
[1767427480064,2.54917678,130.15,130.12,0.7167206]
[1767427480870,2.96114409,130.14,130.1,14.02]
[1767427481184,2.96114409,130.14,130.1,14.7367206]
[1767427481795,2.54917678,130.15,130.12,0.7167206]
[1767427482399,8.09813536,130.16,130.12,0.7167206]
[1767427482585,2.54917678,130.15,130.12,0.7167206]
[1767427483692,0.4151286,130.16,130.12,8.4018661]
[1767427483990,3.73176509,130.16,130.12,8.4018661]
[1767427485881,3.31663649,130.17,130.13,0.7167206]
[1767427486779,10.99907292,130.17,130.13,0.7167206]
[1767427486986,2.54917678,130.16,130.13,0.7167206]
[1767427487901,11.09807292,130.17,130.13,8.40120393]
[1767427489892,2.54917678,130.16,130.13,0.7167206]
[1767427490976,8.54889614,130.17,130.13,0.7167206]
[1767427491176,2.54917678,130.16,130.13,0.7167206]
[1767427493680,11.09807292,130.17,130.13,0.7167206]
[1767427495296,8.86434636,130.18,130.14,0.7167206]
[1767427495505,2.54917678,130.17,130.14,0.7167206]
[1767427496405,8.86434636,130.18,130.14,0.7167206]
[1767427496406,11.41352314,130.18,130.14,0.7167206]
[1767427499506,2.54917678,130.17,130.14,0.7167206]
[1767427500889,11.41352314,130.18,130.14,0.7167206]
[1767427501088,2.54917678,130.17,130.14,0.7167206]
[1767427503591,3.7286038,130.16,130.13,0.68559008]
[1767427505204,2.65130645,130.15,130.12,0.68559008]
[1767427506710,2.54917678,130.15,130.12,0.68559008]
[1767427511503,2.65130645,130.13,130.1,0.68559008]
[1767427511699,2.95804572,130.12,130.09,0.68559008]
[1767427512011,2.54917678,130.11,130.08,0.68559008]
[1767427512218,2.54917678,130.1,130.08,0.68559008]
[1767427512919,2.54917678,130.11,130.08,0.68559008]
[1767427515416,10.2346555,130.12,130.08,0.68559008]
[1767427515597,10.23403914,130.13,130.09,0.68559008]
[1767427515925,11.10049885,130.13,130.09,0.68559008]
[1767427516818,3.31663649,130.13,130.1,0.68559008]
[1767427517015,11.41596323,130.14,130.1,0.68559008]
[1767427517314,2.54917678,130.12,130.09,0.68559008]
[1767427519221,11.4141244,130.12,130.09,0.68559008]
[1767427519417,11.4141244,130.12,130.07,7.88803991]
[1767427519719,2.54917678,130.11,130.08,0.68559008]
[1767427521322,11.4141244,130.12,130.08,0.68559008]
[1767427521725,2.54917678,130.11,130.08,0.68559008]
[1767427526521,1.63469728,130.11,130.08,0.68559008]
[1767427526827,9.32055087,130.11,130.08,0.68559008]
[1767427527827,2.40215699,130.1,130.07,0.88559008]
[1767427528404,1.73989434,130.09,130.07,0.2]
[1767427528610,1.63469728,130.08,130.07,0.2]
[1767427529028,1.63469728,130.08,130.06,0.2]
[1767427529224,28.53952221,130.09,130.06,0.91789013]
[1767427529820,28.63852221,130.09,130.06,0.91789013]
[1767427530431,9.42105738,130.09,130.06,0.91789013]
[1767427532232,1.63469728,130.09,130.07,0.70182373]